Cogmind - Beta 15 @@@ ROGUE MODE // 2025.10.19 @ 20:36:00 Player: mehbruh Result: Core destroyed Performance ------------- Evolutions (0) 0 Regions Visited (3) 600 Robots Destroyed (21) 105 Value Destroyed (385) 385 Prototype IDs (0) 0 Alien Tech Used (0) 0 Bonus (0) 0 TOTAL SCORE: 1090 Bonus ------- None Cogmind --------- Core Integrity 0/250 Matter 274/300 Energy 100/100 System Corruption 50% Temperature Cool (0) Movement Core (500) Ox9 Location -10/Exiles Parts ------- > --- POWER (1) -------- Light Nuclear Core (fused) > --- PROPULSION (2) --- Light Treads Light Treads > --- UTILITY (2) ------ Large Storage Unit > --- WEAPON (2) ------- Assault Rifle Light Assault Rifle > --- INVENTORY (15) --- Light Treads Improved Heat Sink High-capacity Matter Pod (200) Targeting Computer Targeting Computer Hardened Light Armor Plating Heavy EM Pulse Gun Heavy EM Pulse Gun Heavy EM Pulse Gun Heavy EM Pulse Gun Heavy EM Pulse Gun Light Assault Rifle Rocket Launcher Rocket Launcher Peak State ------------ > --- POWER ------------ Light Nuclear Core > --- PROPULSION ------- Light Treads Light Treads > --- UTILITY ---------- Large Storage Unit Seismic Detector > --- WEAPON ----------- Assault Rifle Light Assault Rifle > --- INVENTORY -------- Light Treads Light Treads Large Matter Pod Targeting Computer Targeting Computer Hardened Light Armor Plating Heavy EM Pulse Gun Heavy EM Pulse Gun Heavy EM Pulse Gun Heavy EM Pulse Gun Heavy EM Pulse Gun Light Assault Rifle Rocket Launcher Rocket Launcher [Rating: 11] Favorites ----------- Power Light Ion Engine Engine Light Ion Engine Power Core Light Nuclear Core Propulsion Light Treads Treads Light Treads Utility Seismic Detector Device Seismic Detector Storage Large Storage Unit Weapon Light Assault Rifle Energy Gun Heavy EM Pulse Gun Ballistic Gun Light Assault Rifle Build | -11 -10 -10 -10 ------- Run | Yrd Mat Min Exi Slots Evolved . | . . . . Power . | . . . . Propulsion . | . . . . Utility . | . . . . Weapon . | . . . . Parts Attached 14 | 7 4 2 1 Power 3 | 1 1 1 . Engine 2 | 1 1 . . Core 1 | . . 1 . Reactor . | . . . . Propulsion 4 | 2 . 1 1 Treads 4 | 2 . 1 1 Leg . | . . . . Wheel . | . . . . Hover . | . . . . Flight . | . . . . Utility 4 | 2 2 . . Device 1 | 1 . . . Storage 3 | 1 2 . . Processor . | . . . . Hackware . | . . . . Protection . | . . . . Artifact . | . . . . Weapon 3 | 2 1 . . Energy Gun 1 | . 1 . . Energy Cannon . | . . . . Ballistic Gun 2 | 2 . . . Ballistic Cannon . | . . . . Launcher . | . . . . Special Weapon . | . . . . Impact Weapon . | . . . . Slashing Weapon . | . . . . Piercing Weapon . | . . . . Special Melee Weapon . | . . . . Unidentified Prototypes . | . . . . Parts Lost 3 | . . 2 1 Power 1 | . . 1 . Propulsion 1 | . . 1 . Utility 1 | . . . 1 Weapon . | . . . . Highest Loss Streak 2 | . . 2 1 To Critical Strikes . | . . . . Average Backups 10 | 4 9 14 14 Power . | . . . . Propulsion 2 | 2 2 2 1 Utility 3 | . 2 4 5 Weapon 5 | . 4 8 8 Tool/Special . | . . . . Unused Backups 21 | . 7 1 13 Power 1 | . 1 . . Propulsion 5 | . 4 . 1 Utility 7 | . 1 1 5 Weapon 8 | . 1 . 7 Tool/Special . | . . . . Average Slot Usage (%) 97 | . 100 99 88 Engine 9 | . 14 6 . Core 4 | . . 7 14 Treads 27 | . 28 28 27 Device 12 | . 14 14 4 Storage 14 | . 14 14 14 Ballistic Gun 27 | . 27 28 28 Peak Build Rating 11 | 7 9 11 11 Average Rating 8 | 5 7 10 10 On Entrance 6 | . 7 9 11 Naked Turns . | . . . . Heaviest Build 29 | 12 29 29 29 Greatest Support 40 | 40 40 40 40 Greatest Overweight (x) 2 | 2 . 1 . Average Overweight (x) . | . . . . Largest Inventory Capacity 15 | 8 15 15 15 Average Capacity 11 | 7 10 15 15 Most Carried 15 | 6 15 15 15 Average Carried 10 | 4 9 14 14 Final Capacity 15 | 8 15 15 15 Final Carried 15 | 6 15 15 14 Class Distribution -------------------- 95% | Mutant 4% | Scavenger-Mutant Dominant Class ---------------- Mutant | -10/Materials Mutant | -10/Mines Mutant | -10/Exiles Resources | -11 -10 -10 -10 ----------- Run | Yrd Mat Min Exi Matter Collected 738 | 274 385 79 . Remotely . | . . . . Salvage Created 626 | 104 348 174 . Parts 40 | 8 22 10 . Haulers Intercepted 2 | . 2 . . Recyclers Shooed 1 | . 1 . . Parts Field Recycled . | . . . . Retrieved Matter . | . . . . Parts Self-Destructed . | . . . . Prevented . | . . . . Kills | -11 -10 -10 -10 ------- Run | Yrd Mat Min Exi Combat Hostiles Destroyed 13 | . 9 4 . Guns 13 | . 9 4 . Classes Destroyed 7 | 2 4 1 . Worker 1 | . . 1 . Tunneler 3 | 3 . . . Hauler 2 | . 2 . . Recycler 1 | 1 . . . Operator 1 | . 1 . . Swarmer 6 | . 6 . . Grunt 7 | . 3 4 . Best Kill Streak 4 | 2 4 2 . Combat Bots Only 3 | . 3 2 . Max Kills in Single Turn 1 | 1 1 1 . Gunslinging . | . . . . Exploded . | . . . . Melee . | . . . . Uniques/NPCs Destroyed . | . . . . Combat | -11 -10 -10 -10 -------- Run | Yrd Mat Min Exi Hostile Shots Fired 77 | . 53 24 . Missed 24 | . 18 6 . Hits 53 | . 35 18 . Projectile 53 | . 35 18 . Critical Strikes 2 | . . 2 . Damage Taken 878 | . 359 235 284 Core 250 | . 57 . 193 Absorbed by Shields . | . . . . Core Remaining (%) 100 | 100 . . . Volleys Fired 70 | 8 46 16 . Largest 2 | 2 2 2 . Hottest 45 | 40 45 40 . Shots Fired 137 | 16 89 32 . Gun 137 | 16 89 32 . Cannon . | . . . . Launcher . | . . . . Special . | . . . . Kinetic 134 | 16 86 32 . Thermal . | . . . . Explosive . | . . . . Electromagnetic 3 | . 3 . . Robot Hit Streak 10 | 4 10 7 . Robot Miss Streak 5 | 2 5 2 . Penetration Max . | . . . . Secondary Targets 1 | . 1 . . Max Gunslinging Chain 1 | . 1 . . Shots Hit Robots 84 | 9 51 24 . Core Hits 41 | 5 25 11 . Critical Kills 1 | 1 . . . Critical Parts Destroyed 1 | 1 . . . Critical Strikes 2 | 2 . . . Destroy 2 | 2 . . . Melee Attacks . | . . . . Impact . | . . . . Slashing . | . . . . Piercing . | . . . . Sneak Attacks . | . . . . Combat Hostiles . | . . . . Follow-up Attacks . | . . . . Damage Inflicted 1036 | 97 585 253 101 Guns 909 | 97 568 244 . Cannons . | . . . . Explosions . | . . . . Melee . | . . . . Ramming 127 | . 17 9 101 Kinetic 909 | 97 568 244 . Thermal . | . . . . Explosive . | . . . . Electromagnetic . | . . . . Impact . | . . . . Slashing . | . . . . Piercing . | . . . . Highest Corruption 50 | . . . 50 Average Corruption 31 | . . . 31 Corruption Purged . | . . . . Corruption Blocked . | . . . . Effects 12 | . . . 12 Message Errors 3 | . . . 3 Matter Fused 3 | . . . 3 Heat Flow Errors 3 | . . . 3 Energy Discharges 1 | . . . 1 Parts Fused 1 | . . . 1 Alerts 1 | . . . 1 Overload Shots . | . . . . Overflow Damage . | . . . . Projectiles . | . . . . Explosions . | . . . . Melee . | . . . . Knockbacks . | . . . . Impact . | . . . . Kinetic . | . . . . Secondary . | . . . . Self-Inflicted Damage 101 | . . . 101 Shots . | . . . . Rammed 5 | . 5 . . Targets Rammed 6 | . 5 1 . Kicked . | . . . . Crushed 1 | . . 1 . Highest Temperature 266 | . 18 22 266 Average Temperature 41 | . 8 11 102 Received Heat Transfer 279 | . 105 174 . Siege Activations . | . . . . Martial Activations . | . . . . Shielding Activations . | . . . . Robots Disrupted . | . . . . Combat Hostiles . | . . . . Robots Corrupted . | . . . . Combat Hostiles . | . . . . Parts Fried . | . . . . Impact Corruptions . | . . . . Robots Melted . | . . . . Combat Hostiles . | . . . . Parts Melted . | . . . . Heat Transferred . | . . . . Parts Sabotaged . | . . . . Parts Stolen . | . . . . Parts Stripped . | . . . . Power Chain Reactions . | . . . . Alert | -11 -10 -10 -10 ------- Run | Yrd Mat Min Exi Maximum Alert Level . | . . . . Low Security (%) 100 | 100 100 100 . Level 1 . | . . . . Level 2 . | . . . . Level 3 . | . . . . Level 4 . | . . . . Level 5 . | . . . . High Security . | . . . . Max Security . | . . . . Peak Influence 164 | 10 164 40 . Initial 12 | . . 12 . Average 41 | 2 57 9 . Influence Increases 418 | 20 293 105 . Destroy 0b10 Robot/C 260 | . 180 80 . Destroy 0b10 Robot/NC 40 | 20 15 5 . Destroy Leader 64 | . 44 20 . Successful Hack 9 | . 9 . . Lose Combat Pursuer 45 | . 45 . . Influence Decreases 418 | 20 262 136 . Entered New Map 19 | . . 19 . Time Decay 389 | 20 262 107 . Lost Part 10 | . . 10 . Squads Dispatched 1 | . 1 . . Investigation . | . . . . Extermination . | . . . . Reinforcement 1 | . 1 . . Assault . | . . . . Garrison . | . . . . Intercept . | . . . . Searches Triggered . | . . . . Construction Impeded . | . . . . Haulers Reinforced . | . . . . Active Scanning Responses . | . . . . Cargo Convoy Interrupts . | . . . . Stealth | -11 -10 -10 -10 --------- Run | Yrd Mat Min Exi Distress Signals 2 | . 2 . . Communications Jammed . | . . . . Distress Signals . | . . . . Times Spotted 30 | . 26 4 . Peak Tracking Total 5 | . 5 2 . Tactical Retreats 2 | . 2 . . Traps | -11 -10 -10 -10 ------- Run | Yrd Mat Min Exi Traps Triggered . | . . . . Indirectly . | . . . . Trap Hack Attempts . | . . . . Triggered . | . . . . Disarmed . | . . . . Reprogrammed . | . . . . Reused . | . . . . Traps Extracted . | . . . . Installed . | . . . . Triggered . | . . . . Machines | -11 -10 -10 -10 ---------- Run | Yrd Mat Min Exi Machines Disabled . | . . . . Max in Single Turn . | . . . . Machines Repaired . | . . . . Machines Dismantled . | . . . . Machines Sabotaged . | . . . . Overloaded Fab Kills . | . . . . Hacking | -11 -10 -10 -10 --------- Run | Yrd Mat Min Exi Machines Accessed 5 | . 5 . . Terminals 5 | . 5 . . Fabricators . | . . . . Repair Stations . | . . . . Recycling Units . | . . . . Scanalyzers . | . . . . Garrison Access . | . . . . Total Hacks 11 | . 11 . . Successful 4 | . 4 . . Failed 7 | . 7 . . Catastrophic 1 | . 1 . . Database Lockouts . | . . . . Manual 6 | . 6 . . Terminals 11 | . 11 . . Fabricators . | . . . . Repair Stations . | . . . . Recycling Units . | . . . . Scanalyzers . | . . . . Garrison Access . | . . . . Terminal Hacks 3 | . 3 . . Robot Analysis 1 | . 1 . . Locate Traps 2 | . 2 . . Fabricator Hacks . | . . . . Repair Station Hacks . | . . . . Recycling Unit Hacks . | . . . . Scanalyzer . | . . . . Garrison Access Hacks . | . . . . Unauthorized Hacks 1 | . 1 . . Terminals 1 | . 1 . . Botnet 1 | . 1 . . Fabricators . | . . . . Repair Stations . | . . . . Recycling Units . | . . . . Scanalyzers . | . . . . Garrison Access . | . . . . Data Cores Recovered . | . . . . Used . | . . . . Hacking Detections 5 | . 5 . . Full Trace Events . | . . . . Feedback Events . | . . . . Feedback Blocked . | . . . . Robot Schematics Acquired . | . . . . Robots Built . | . . . . Authchips . | . . . . Time . | . . . . Total Robot Build Rating . | . . . . Part Schematics Acquired . | . . . . Parts Built . | . . . . Authchips . | . . . . Time . | . . . . Total Part Build Rating . | . . . . Parts Repaired . | . . . . Time . | . . . . Parts Recycled . | . . . . Recycled Matter . | . . . . Retrieved Matter . | . . . . Retrieved Components . | . . . . Parts Scanalyzed . | . . . . Part Schematics Acquired . | . . . . Parts Damaged . | . . . . Bothacking | -11 -10 -10 -10 ------------ Run | Yrd Mat Min Exi Used RIF Installer . | . . . . Robots Hacked . | . . . . Non-combat . | . . . . Combat . | . . . . Robot Hacks Applied . | . . . . Relay Couplers Released . | . . . . Fabnet Peak Effective % . | . . . . Robots Rewired . | . . . . Allies Hacked . | . . . . Hacks Repelled . | . . . . Allies | -11 -10 -10 -10 -------- Run | Yrd Mat Min Exi Total Allies . | . . . . Largest Group . | . . . . Highest-Rated Group . | . . . . Highest-Rated Ally . | . . . . Total Orders . | . . . . Ally Attacks . | . . . . Total Damage . | . . . . Kills . | . . . . Allies Corrupted . | . . . . Allies Melted . | . . . . Intel | -11 -10 -10 -10 ------- Run | Yrd Mat Min Exi Active Infowar (turns) 1647 | 16 1132 431 68 Seismic 1647 | 16 1132 431 68 Robot Analysis Total 1 | . 1 . . Derelict Logs Recovered 1 | . . 1 . Drone Launches . | . . . . Drone Recoveries . | . . . . Exploration | -11 -10 -10 -10 ------------- Run | Yrd Mat Min Exi Turns Passed 2013 | 123 1132 431 327 Spaces Moved 919 | 55 592 232 40 Core 9 | 9 . . . Treads 910 | 46 592 232 40 Legs . | . . . . Wheels . | . . . . Hover . | . . . . Flight . | . . . . Fastest Speed 50 | 50 160 160 160 Average Speed 159 | 147 160 160 160 Slowest Speed 240 | 160 160 240 160 Overloaded Moves . | . . . . Propulsion Burnouts . | . . . . Robots Hopped . | . . . . Potential Cave-ins . | . . . . Cave-ins Triggered . | . . . . Exploration Rate (%) 38 | 6 95 38 13 Regions Visited 3 Branch Regions 2 Pre-discovered Areas 1 | . . 1 . Known Exits Taken . | . . . . Unknown Exits Taken 3 | 1 1 1 . Scrap Searched . | . . . . Spaces Dug . | . . . . Terrain Destroyed . | . . . . Melee . | . . . . Projectile . | . . . . AOE . | . . . . Terrain Rammed 60 | . . . 60 Walls Destroyed . | . . . . Machines Disabled . | . . . . Actions | -11 -10 -10 -10 --------- Run | Yrd Mat Min Exi Total 1140 | 79 697 263 101 Wait 37 | 4 23 10 . Move 916 | 54 591 231 40 Hop . | . . . . Pick Up 25 | 6 17 2 . Fast Attach 8 | 7 . 1 . Attach 2 | . . 1 1 Detach . | . . . . Swap 5 | . 5 . . Drop 12 | . 10 1 1 Fire 70 | 8 46 16 . Melee . | . . . . Ram 59 | . . . 59 Kick . | . . . . Crush 6 | . 5 1 . Escape Stasis . | . . . . Rewire . | . . . . Trap . | . . . . Miscellaneous . | . . . . Route ------- -11/Scrapyard -10/Materials (discovered 6 exits: [*Mat x3] / [*Min x2] / [*Sub]) -10/Mines (discovered 4 exits: [*Mat x2] / [*Exi] / [*Sub]) -10/Exiles History --------- Turn | Location | Event 24 | -11/Scrapyard | Discovered new exit (range 14) 124 | -11/Scrapyard | Entered Materials 248 | -10/Materials | Discovered new exit (range 8) 300 | -10/Materials | Build established: Mutant 314 | -10/Materials | Discovered new exit (range 14) 487 | -10/Materials | Discovered new exit (range 3) 596 | -10/Materials | Discovered new exit (range 16) 981 | -10/Materials | Discovered new exit (range 8) 1173 | -10/Materials | Discovered new exit (range 13) 1256 | -10/Materials | Entered Mines 1285 | -10/Mines | Learned 8 Materials zone layouts 1330 | -10/Mines | Discovered new exit (range 12) 1401 | -10/Mines | Discovered new exit (range 9) 1403 | -10/Mines | Learned location of Storage (-7) 1517 | -10/Mines | Discovered new exit (range 15) 1679 | -10/Mines | Deemed a non-threat by the Exiles lab entrance 1681 | -10/Mines | Discovered new exit (range 5) 1687 | -10/Mines | Entered Exiles 1687 | -10/Exiles | Found Exiles lab destroyed 1772 | -10/Exiles | System corruption reached 10% 1870 | -10/Exiles | System corruption reached 30% 1875 | -10/Exiles | Core integrity fell below 50% 1980 | -10/Exiles | Core integrity fell below 20% 2014 | -10/Exiles | Core destroyed Last Messages --------------- 01974_ Destabilizing: System corrupted (+1). 01979_ Slammed into Wall. 01979_ Destabilizing: Core damaged (-10). 01984_ Slammed into Wall. 01984_ Destabilizing: Core damaged (-2). 01989_ Slammed into Wall. 01989_ Destabilizing: Core damaged (-2). 01994_ Slammed into Wall. 01994_ Destabilizing: Core damaged (-5). 01997_ System corrupted: Matter fused (-8). 01999_ Slammed into Wall. 01999_ Destabilizing: Core damaged (-12). 01999_ Destabilizing: System corrupted (+2). 02004_ Slammed into Wall. 02009_ Destabilizing: System corrupted (+1). 02009_ Destabilizing: Core damaged (-10). 02014_ System corrupted: IFF burst signal emitted. 02014_ Slammed into Wall. 02014_ Destabilizing: Core damaged (-10). Map ----- +----------------------------------------------------+ | ?????????????????????????????????????????????????? | | ?????????????????????????????????????????????????? | | ?????????????????????????????????????????????????? | | ?????????????????????????????????????????????????? | | ?????????????????????????????????????????????????? | | ?????????????????????????????????????????????????? | | ?????????????????????????????????????????????????? | | ?????????????????????????????????????????????????? | | ?????????????????????????????????????????????????? | | ?????????????????????????????????????????????????? | | ?????????????????????????????????????????????????? | | ?????????????????????????????????????????????????? | | ?????????????????????????????????????????????????? | | ?????????????????????????????????????????????????? | | ?????????????????????????????????????????????????? | | ?????????????????????????????????????????????????? | | ?????????????????????????????????????????????????? | | ?????????????????????????????????????????????????? | | ?????????????????????????????????????????????????? | | ?????????????????????????????????????????????????? | | ??????????????????????????????#####??????????????? | | ?????????????????????????????## #??????????????# | | ?????????????????????????????#" #?????????????## | | ????????????????????????????## ##????????????# | | ???????????????????????###### ###????????### | | ???????????????????????# @# ########## | | ???????????????????????# #""""## | | ?????????????????? #g | | ????????????? ## | | ???????????? #### | | ???????????? "#?#"""""#### | | ????????????? ""##?#######??#### | | ????????????? #####??????????????##### | | ?????????????? ##???????????????????????## | | ????????????? #??????????????????????????? | | ?????????????? ""???????????????????????????? | | ?????????????? "#???????????????????????????? | | ???????????????? "??????????????????????????????? | | ???????????????? ????????????????????????????????? | | ?????????????????????????????????????????????????? | | ?????????????????????????????????????????????????? | | ?????????????????????????????????????????????????? | | ?????????????????????????????????????????????????? | | ?????????????????????????????????????????????????? | | ?????????????????????????????????????????????????? | | ?????????????????????????????????????????????????? | | ?????????????????????????????????????????????????? | | ?????????????????????????????????????????????????? | | ?????????????????????????????????????????????????? | | ?????????????????????????????????????????????????? | +----------------------------------------------------+ Best States ------------- Heat Dissipation 25 Energy Generation 14 Energy Capacity 250 Matter Stores 300 Matter Capacity 300 Sight Range 16 Terrain Scan Density 10 Evasion (%) 40 Recoil Reduction 2 Item Schematics ----------------- None Robot Schematics ------------------ None Fabricated ------------ Nothing Repaired ---------- Nothing Alien Tech Used ----------------- None Achievements -------------- None Challenges ------------ None Game ------ Seed MomentumPoweredDevice Manual? 0 Play Time 00:13:18 Cumulative 79.8 hours Start 2025.10.19 @ 20:22:49 End 2025.10.19 @ 20:36:00 Sessions 1 Manual Loads 0 Difficulty Rogue Special Mode None Game No. 79 Rogue 79 Adventurer 0 Explorer 0 Win Type - Total 3 Types 3/0/0/0/0/0/0/0/0/0 Lore% 43 Gallery% 47 Achievement% 50 Wizard Run 0 Options --------- Layout 1 ASCII 0 Keyboard 0 Movement Arrows Keybinds 0 Fullscreen 1 Font 24/Smallcaps Map View 50x35 Zoom Use 0% Tactical HUD 1 Map Filters NONE Filters NONE Steam 1 RUN: cfc6e4af-e4c8-44f4-a22b-65e67148078d